bitfinex-derivatives/quotes_SOLF0:USTF0_20250530
["timestamp","ask_amount","ask_price","bid_price","bid_amount"]
[1748645792714,0.04228695,157.55,157.43,12.7001]
[1748645792916,0.0442365,157.51,157.43,12.7001]
[1748645793110,0.0442365,157.51,157.42,36.96]
[1748645793617,6.3915365,157.51,157.42,36.96]
[1748645793817,0.0442365,157.51,157.43,36.96]
[1748645794018,0.04127816,157.49,157.44,36.96]
[1748645794320,0.04127816,157.49,157.35,560.59416473]
[1748645794321,0.04258032,157.48,157.43,36.96]
[1748645794519,6.3493,157.46,157.41,6.3507]
[1748645794724,0.04500994,157.45,157.42,36.96]
[1748645795208,0.04500994,157.45,157.35,560.59416473]
[1748645795413,0.04341568,157.42,157.35,49.87416473]
[1748645796017,36.96,157.51,157.35,49.71960098]
[1748645796218,6.3491,157.46,157.35,49.71960098]
[1748645796420,6.3491,157.46,157.36,6.62]
[1748645796920,36.96,157.51,157.36,6.62]
[1748645797121,0.04453211,157.45,157.42,0.04430018]
[1748645797323,0.04453211,157.45,157.44,6.3498]
[1748645797513,1.993,157.53,157.43,36.96]
[1748645797717,1.993,157.53,157.43,41.0624]
[1748645798215,2.1632,157.54,157.43,41.0624]
[1748645798418,6.3461,157.54,157.51,6.3469]
[1748645798622,0.04364059,157.54,157.51,0.0450812]
[1748645799017,6.3461,157.53,157.51,0.0450812]
[1748645799224,0.04364059,157.54,157.51,0.0450812]
[1748645799614,6.3465,157.53,157.51,0.0450812]
[1748645799817,0.04364059,157.54,157.51,0.0450812]
[1748645800223,6.3464,157.53,157.51,0.0450812]
[1748645800518,0.04364059,157.54,157.51,0.0450812]
[1748645801122,0.04364059,157.54,157.43,4.1024]
[1748645801428,36.98,157.55,157.46,36.98]
[1748645802026,6.3477,157.5,157.46,36.98]
[1748645802216,0.04448883,157.5,157.46,37.02029323]
[1748645802423,0.04448883,157.5,157.49,6.3478]
[1748645802724,36.98,157.61,157.46,37.02029323]
[1748645802924,36.98,157.61,157.47,2.0143]
[1748645803119,6.3455,157.55,157.47,2.0143]
[1748645803324,36.98,157.61,157.47,1.85897356]
[1748645803524,0.04446528,157.56,157.52,0.04347817]
[1748645803733,6.38966528,157.56,157.53,36.98]
[1748645804024,0.04446528,157.56,157.53,36.98]
[1748645804230,0.04446528,157.56,157.54,8.5179]
[1748645804630,6.38446528,157.56,157.37,548.1]
[1748645804930,10.87610644,157.52,157.41,2.0041]
[1748645805130,10.88646364,157.52,157.41,2.0041]
[1748645805731,0.04813673,157.48,157.45,0.04028594]
[1748645805934,6.3489,157.46,157.45,0.04028594]
[1748645809329,6.3493,157.45,157.38,38.94]
[1748645809531,12.89239743,157.51,157.38,41.0407]
[1748645810035,12.89239743,157.51,157.39,6.3516]
[1748645810225,12.89239743,157.51,157.38,41.0407]
[1748645810535,6.3501,157.44,157.38,47.3928]
[1748645810735,0.04394436,157.43,157.38,47.3928]
[1748645811036,0.04394436,157.43,157.39,6.3514]
[1748645811236,0.04394436,157.43,157.38,41.0407]
[1748645811932,6.39414436,157.43,157.38,47.3924]
[1748645812536,6.3512,157.41,157.38,41.0407]
[1748645812940,0.04394436,157.43,157.38,41.0407]
[1748645814134,0.04394436,157.43,157.41,6.3509]
[1748645814339,0.04394436,157.43,157.38,41.0407]
[1748645815341,6.3505,157.42,157.38,41.0407]
[1748645815835,0.04394436,157.43,157.38,41.0407]
[1748645816036,6.3507,157.42,157.38,47.3925]
[1748645816537,6.3507,157.42,157.39,6.3517]
[1748645816739,0.04394436,157.43,157.38,41.0407]
[1748645817532,0.04394436,157.43,157.37,548.1]
[1748645817740,0.04394436,157.43,157.36,6.62]
[1748645818042,6.3525,157.37,157.36,6.62]
[1748645818434,0.04584678,157.38,157.35,62.30960098]
[1748645818830,0.04584678,157.38,157.37,6.3525]
[1748645820336,43.1317,157.47,157.35,62.30960098]
[1748645820635,2.0089,157.49,157.35,62.30960098]
[1748645821036,6.3492,157.46,157.42,6.3503]
[1748645821239,0.04119612,157.46,157.42,0.04506149]
[1748645821635,0.04119612,157.46,157.43,6.35]
[1748645821940,0.04119612,157.46,157.42,4.12566149]
[1748645822333,6.39039612,157.46,157.43,6.3501]
[1748645822532,6.39039612,157.46,157.42,4.12566149]
[1748645822941,6.39039612,157.46,157.42,10.47596149]
[1748645823138,0.04119612,157.46,157.42,4.12566149]
[1748645823532,0.04119612,157.46,157.44,6.3497]
[1748645824036,0.04119612,157.46,157.42,4.12566149]
[1748645824235,6.39039612,157.46,157.42,4.12566149]
[1748645824439,6.39039612,157.46,157.42,10.47596149]
[1748645825145,0.04119612,157.46,157.42,4.12566149]
[1748645826241,6.3496,157.45,157.42,4.12566149]
[1748645826947,6.3497,157.44,157.42,4.12566149]
[1748645827441,0.04119612,157.46,157.42,4.12566149]
[1748645827644,0.04119612,157.46,157.42,0.04506149]
[1748645827845,6.3501,157.43,157.42,0.04506149]
[1748645831651,6.36,157.43,157.23,358.0]
[1748645831952,6.3526,157.37,157.31,4.1774]
[1748645832642,6.3526,157.37,157.31,10.5323]
[1748645832845,0.0482995,157.38,157.3,40.66]
[1748645833543,0.0482995,157.38,157.31,2.1466]
[1748645833744,0.0482995,157.38,157.33,6.3539]
[1748645834245,0.0482995,157.38,157.31,8.5015]
[1748645834750,6.353,157.36,157.31,8.5015]
[1748645834945,0.0482995,157.38,157.31,8.5015]
[1748645835142,0.0482995,157.38,157.31,2.1466]
[1748645835347,6.3529,157.37,157.31,2.1466]
[1748645835747,0.0482995,157.38,157.34,6.3537]
[1748645835946,6.4005995,157.38,157.31,2.1466]
[1748645836349,0.0482995,157.38,157.33,6.3541]
[1748645836548,6.3529,157.37,157.33,6.3541]
[1748645836748,0.0482995,157.38,157.31,2.1466]
[1748645836951,0.0482995,157.38,157.34,6.3537]
[1748645837148,6.4007995,157.38,157.34,6.3537]
[1748645837949,6.4007995,157.38,157.35,6.3533]
[1748645838451,6.4007995,157.38,157.34,6.3537]
[1748645838746,0.0482995,157.38,157.31,2.1466]
[1748645839651,0.0482995,157.38,157.37,6.3526]
[1748645839953,0.0482995,157.38,157.31,2.1466]
[1748645840442,6.4005995,157.38,157.31,2.1466]
[1748645840642,0.0482995,157.38,157.31,2.1466]
[1748645841160,0.0482995,157.38,157.36,6.3527]
[1748645841655,0.0482995,157.38,157.35,47.0132]
[1748645841950,0.0482995,157.38,157.35,40.66]
[1748645843163,0.0482995,157.38,157.32,6.3544]
[1748645843465,0.0482995,157.38,157.31,40.66]
[1748645843762,0.0482995,157.38,157.33,6.3541]
[1748645843963,6.3532,157.36,157.33,6.3541]
[1748645844360,0.0482995,157.38,157.31,40.66]
[1748645845065,6.3544,157.33,157.31,40.66]
[1748645845461,0.04004973,157.34,157.31,40.66]
[1748645845665,6.3542,157.33,157.31,40.66]
[1748645845858,0.04004973,157.34,157.29,6.3555]
[1748645846061,0.04004973,157.34,157.28,14.6337]
[1748645846263,6.3552,157.31,157.28,20.9896]
[1748645846568,0.04004973,157.34,157.28,14.6337]
[1748645846761,0.04004973,157.34,157.28,12.47]
[1748645847566,6.3558,157.29,157.28,12.47]
[1748645847868,0.04634968,157.3,157.24,40.68]
[1748645848259,6.3569,157.27,157.24,40.68]
[1748645848459,0.04634968,157.3,157.24,40.68]
[1748645848757,6.3561,157.29,157.24,40.68]
[1748645848959,0.04634968,157.3,157.24,40.68]
[1748645850060,0.04634968,157.3,157.22,1.989]
[1748645850061,0.04634968,157.3,157.22,13.38]
[1748645850871,6.357,157.27,157.23,6.3582]
[1748645851073,0.04514701,157.27,157.23,6.3582]
[1748645851365,0.04514701,157.27,157.22,13.38]
[1748645852159,0.04514701,157.27,157.24,6.3576]
[1748645852361,0.04514701,157.27,157.22,13.38]
[1748645852759,0.04514701,157.27,157.26,6.357]
[1748645855770,0.04514701,157.27,157.23,2.0619]
[1748645855969,0.04514701,157.27,157.22,13.38]
[1748645857272,6.3582,157.23,157.22,13.38]
[1748645857669,6.25334701,157.27,157.16,6.3608]
[1748645857871,0.04388085,157.23,157.15,42.8866]
[1748645858077,0.04388085,157.23,157.15,40.7]
[1748645858374,40.74388085,157.23,157.15,40.7]
[1748645858676,6.3598,157.19,157.16,6.3607]
[1748645858878,0.04224281,157.19,157.15,40.7]
[1748645859770,0.04224281,157.19,157.12,14.14]
[1748645859980,0.04323333,157.17,157.12,14.14]
[1748645860276,6.40423333,157.17,157.13,6.3621]
[1748645860476,0.04323333,157.17,157.12,14.14]
[1748645860976,0.04323333,157.17,157.13,6.362]
[1748645861274,0.04323333,157.17,157.12,14.14]
[1748645861976,2.23673333,157.17,157.09,6.3637]
[1748645862180,0.04832221,157.15,157.04,4.3022]
[1748645862476,0.04202492,157.11,157.04,4.3022]
[1748645864073,0.04202492,157.11,157.08,6.364]
[1748645864278,0.04202492,157.11,157.04,4.3022]
[1748645865076,0.04202492,157.11,157.07,6.3644]
[1748645865276,0.04202492,157.11,157.04,4.3022]
[1748645866177,6.3651,157.06,157.03,43.2712]
[1748645866373,0.04181646,157.06,157.03,41.16]
[1748645867582,0.04181646,157.06,157.02,13.31]
[1748645867883,6.40731646,157.06,157.02,13.31]
[1748645868180,0.04181646,157.06,157.02,13.31]
[1748645868886,0.04181646,157.06,157.04,6.3656]
[1748645869079,0.04181646,157.06,157.02,13.31]
[1748645870186,6.3662,157.04,157.02,13.31]
[1748645870487,6.3662,157.04,157.0,541.16]
[1748645870880,6.3662,157.04,157.01,6.367]
[1748645871278,6.3658,157.05,157.02,6.3667]
[1748645871478,0.04181646,157.06,157.0,541.16]
[1748645871879,41.16,157.12,157.01,10.89945945]
[1748645872283,6.3643,157.08,157.01,10.89945945]
[1748645872479,41.16,157.12,157.0,541.16]
[1748645872788,6.365,157.07,157.04,0.04650277]
[1748645872983,0.04626269,157.08,157.04,0.04650277]
[1748645873891,6.3648,157.07,157.04,0.04650277]
[1748645874088,0.04626269,157.08,157.04,6.41230277]
[1748645874692,6.3651,157.07,157.04,6.41230277]
[1748645875285,6.41066269,157.08,157.05,6.3655]
[1748645875485,0.04626269,157.08,157.04,0.04650277]
[1748645875892,0.04626269,157.08,157.05,6.3651]
[1748645876192,0.04626269,157.08,157.04,0.04650277]
[1748645878491,6.3647,157.07,157.04,0.04650277]
[1748645879098,6.41056269,157.08,157.04,6.41210277]
[1748645879393,0.04626269,157.08,157.04,0.00756501]
[1748645879695,0.04626269,157.08,157.05,2.0784]
[1748645879996,41.2,157.16,157.05,43.2784]
[1748645880298,6.3626,157.12,157.08,6.3639]
[1748645880587,41.2,157.16,157.06,2.0819]
[1748645880991,0.04119573,157.13,157.05,43.2784]
[1748645881188,0.04119573,157.13,157.07,0.04206907]
[1748645881383,6.3642,157.08,157.07,0.04206907]
[1748645882688,6.3639,157.09,157.07,0.04206907]
[1748645882888,0.04723976,157.12,157.07,0.04206907]
[1748645883290,6.3642,157.08,157.07,0.04206907]
[1748645883495,41.2,157.08,157.0,451.66583502]
[1748645883695,6.367,157.01,157.0,451.66583502]
[1748645883896,6.367,157.01,157.0,414.18853502]
[1748645884191,12.727,157.01,157.0,108.98678679]
[1748645884394,23.69063437,157.01,157.0,5.74286235]
[1748645884792,12.727,157.01,157.0,5.74286235]
[1748645885197,53.927,157.01,157.0,5.74286235]
[1748645885599,53.927,157.01,157.0,6.235e-05]
[1748645886292,47.567,157.01,157.0,6.235e-05]
[1748645887993,0.04623543,157.02,157.0,6.235e-05]
[1748645889594,6.367,157.01,157.0,6.235e-05]
[1748645889803,0.04623543,157.02,157.0,6.235e-05]
[1748645893008,41.54,157.09,157.0,6.235e-05]
[1748645893506,41.54,157.09,157.0,10.93661114]
[1748645893704,550.0,157.18,157.0,12.94361114]
[1748645893705,41.54,157.13,157.0,12.94361114]
[1748645894107,0.04341467,157.08,157.05,0.04261941]
[1748645895306,6.3618,157.14,157.1,6.3633]
[1748645895503,41.52,157.17,157.06,12.91669181]
[1748645895910,6.3615,157.15,157.11,6.3629]
[1748645896211,0.0453584,157.15,157.11,0.0446044]
[1748645897199,6.3626,157.12,157.11,0.0446044]
[1748645898913,0.0453584,157.15,157.11,0.0446044]
[1748645899411,6.3618,157.14,157.11,0.0446044]
[1748645899607,0.0453584,157.15,157.11,0.0446044]
[1748645900212,6.3626,157.12,157.11,0.0446044]
[1748645906613,47.8826,157.12,157.11,0.0446044]
[1748645907815,47.8826,157.12,157.11,4.4e-06]
[1748645913519,6.3626,157.12,157.11,4.4e-06]
[1748645913708,0.0453584,157.15,157.11,4.4e-06]
[1748645914112,0.0453584,157.15,157.12,6.3625]
[1748645914420,0.0453584,157.15,157.12,2.0777]
[1748645915018,6.3622,157.13,157.12,2.0777]
[1748645917019,6.3619,157.14,157.12,2.0777]
[1748645917215,0.0453584,157.15,157.12,2.0777]
[1748645917615,6.3622,157.13,157.12,2.0777]
[1748645917816,0.0453584,157.15,157.12,2.0777]
[1748645918117,6.3622,157.13,157.12,2.0777]
[1748645918717,3.0528,157.13,157.12,2.0777]
[1748645921422,6.3625,157.12,157.11,4.4e-06]
[1748645924117,6.3623,157.13,157.11,4.4e-06]
[1748645924422,40.7453584,157.15,157.11,4.4e-06]
[1748645924628,6.3626,157.12,157.11,4.4e-06]
[1748645925328,12.7226,157.12,157.11,4.4e-06]
[1748645925527,17.29076338,157.12,157.0,6.235e-05]
[1748645925824,10.93076338,157.12,157.0,6.235e-05]
[1748645926022,6.367,157.01,157.0,6.235e-05]
[1748645927126,6.36,157.01,156.82,40.7]
[1748645927316,42.7081,157.0,156.86,4.0469]
[1748645927522,40.7,156.99,156.86,15.00082006]
[1748645927723,40.7,156.99,156.87,40.7]
[1748645927922,6.3703,156.93,156.87,40.7]
[1748645928325,6.3703,156.93,156.86,4.0469]
[1748645929028,47.11870159,156.94,156.86,4.0469]
[1748645929233,47.11870159,156.94,156.86,15.00082006]
[1748645929529,40.74880159,156.94,156.86,4.0469]
[1748645931226,40.74880159,156.94,156.91,6.371]
[1748645931730,40.74880159,156.94,156.87,1.61]
[1748645931930,0.04880159,156.94,156.88,40.72]
[1748645932130,40.72,157.04,156.9,10.95392006]
[1748645932329,40.72,157.04,156.91,137.12]
[1748645932929,6.3668,157.02,156.91,137.12]
[1748645933133,0.0482826,156.98,156.95,0.0458558]
[1748645933527,0.0482826,156.98,156.95,2.2334558]
[1748645933833,0.0482826,156.98,156.97,6.3686]
[1748645934236,40.72,157.04,156.95,4.4370558]
[1748645934440,47.0861,157.04,157.0,6.3671]
[1748645935134,6.3662,157.03,157.0,0.042288]
[1748645935436,40.76396549,157.04,157.0,0.042288]
[1748645935631,0.04396549,157.04,157.0,0.042288]
[1748645936135,0.04396549,157.04,157.03,6.3662]
[1748645936834,0.04396549,157.04,157.02,6.3665]
[1748645937039,0.04396549,157.04,157.0,0.042288]
[1748645937341,0.04396549,157.04,157.01,6.3667]
[1748645937632,0.04396549,157.04,157.0,0.042288]
[1748645938638,6.41006549,157.04,157.0,6.409688]
[1748645939337,0.04396549,157.04,157.01,6.367]
[1748645939530,0.04396549,157.04,157.0,0.042288]
[1748645940441,0.04396549,157.04,157.02,6.3664]
[1748645941439,0.04396549,157.04,157.03,6.3662]
[1748645941841,40.72,157.08,157.0,0.042288]
[1748645942139,47.0844,157.08,157.0,0.042288]
[1748645942531,47.0844,157.08,157.03,6.3658]
[1748645942738,0.04296712,157.07,157.04,0.04218073]
[1748645943234,6.3654,157.05,157.04,0.04218073]
[1748645944237,6.3673,157.01,156.99,40.72]
[1748645944536,40.72,157.07,156.96,2.0919]
[1748645945240,40.72,157.07,157.0,0.04034817]
[1748645945241,0.04206392,157.03,157.0,0.04034817]
[1748645946829,6.367,157.01,157.0,0.04034817]
[1748645947436,0.04206392,157.03,157.0,0.04034817]
[1748645947737,0.04206392,157.03,157.0,6.40764817]
[1748645947932,0.04206392,157.03,157.0,0.04034817]
[1748645948140,6.367,157.01,157.0,0.04034817]
[1748645953343,39.60206392,157.03,156.91,47.9884]
[1748645953544,10.95392006,157.02,156.89,4.1638]
[1748645953951,6.3712,156.91,156.89,4.1638]
[1748645954153,39.56,156.96,156.89,4.1638]
[1748645954347,6.371,156.92,156.91,0.04801301]
[1748645954551,0.04842609,156.93,156.9,0.04857155]
[1748645955151,6.371,156.92,156.9,0.04857155]
[1748645955653,6.3711,156.91,156.9,0.04857155]
[1748645956347,0.04842609,156.93,156.9,0.04857155]
[1748645957250,6.41882609,156.93,156.9,6.41987155]
[1748645957450,0.04842609,156.93,156.9,0.04857155]
[1748645957951,0.04842609,156.93,156.92,6.3707]
[1748645958148,39.56,156.99,156.92,6.3707]
[1748645958343,6.3694,156.96,156.93,6.37]
[1748645959046,0.04406478,156.96,156.93,0.04873886]
[1748645959247,39.56,156.99,156.93,0.04873886]
[1748645959450,589.56,157.03,156.93,0.04873886]
[1748645959651,6.3669,157.02,156.99,6.3678]
[1748645959965,6.3669,157.02,156.91,50.51392006]
[1748645959966,39.56,157.03,156.95,39.56]
[1748645960152,6.3688,156.97,156.95,39.56]
[1748645960451,0.0472034,156.98,156.94,0.04870535]
[1748645960959,0.0472034,156.98,156.95,1.47]
[1748645961253,0.0472034,156.98,156.95,1.43101636]
[1748645961456,6.4156034,156.98,156.95,7.80021636]
[1748645962155,6.3687,156.97,156.95,1.43101636]
[1748645962745,6.3687,156.97,156.94,6.41830535]
[1748645962949,6.3687,156.97,156.95,6.3695]
[1748645963145,0.0472034,156.98,156.94,0.04870535]
[1748645963554,0.0472034,156.98,156.96,6.3687]
[1748645963755,0.0472034,156.98,156.94,0.04870535]
[1748645964159,0.0472034,156.98,156.95,6.3693]
[1748645964351,0.0472034,156.98,156.94,0.04870535]
[1748645964857,6.3695,156.95,156.94,0.04870535]
[1748645968662,0.0472034,156.98,156.94,0.04870535]
[1748645969051,0.0472034,156.98,156.95,6.3694]
[1748645969255,0.0472034,156.98,156.94,0.04870535]
[1748645970262,6.3695,156.95,156.94,0.04870535]
[1748645970456,0.0472034,156.98,156.94,0.04870535]
[1748645970861,6.3695,156.95,156.94,0.04870535]
[1748645971458,0.0472034,156.98,156.94,0.04870535]
[1748645972361,6.3693,156.96,156.94,0.04870535]
[1748645972567,0.0472034,156.98,156.94,0.04870535]
[1748645973166,6.3692,156.96,156.94,0.04870535]
[1748645973363,0.0472034,156.98,156.94,0.04870535]
[1748645974357,6.3695,156.95,156.94,0.04870535]
[1748645975566,45.9295,156.95,156.94,0.04870535]
[1748645975963,39.56,156.95,156.87,47.9937]
[1748645976166,39.56,156.95,156.87,41.6211]
[1748645976966,6.3715,156.9,156.89,0.04618984]
[1748645977362,0.04505676,156.93,156.89,0.04618984]
[1748645977557,6.3712,156.91,156.89,0.04618984]
[1748645977771,0.04505676,156.93,156.89,0.04618984]
[1748645978156,39.56,156.99,156.89,0.04618984]
[1748645978367,39.56,156.99,156.9,10.95392006]
[1748645978577,6.3672,157.01,156.91,43.7225]
[1748645978867,39.58,157.03,156.93,10.95392006]
[1748645979060,39.58,157.07,156.93,10.95392006]
[1748645979256,39.58,157.07,156.98,0.0465713]
[1748645979257,0.0409636,157.02,156.98,0.0465713]
[1748645979664,0.0409636,157.02,156.99,6.3678]
[1748645980167,6.3678,156.99,156.98,0.0465713]
[1748645980559,0.0409636,157.02,156.98,0.0465713]
[1748645980964,6.3671,157.01,156.98,0.0465713]
[1748645981170,0.0409636,157.02,156.98,0.0465713]
[1748645981371,6.367,157.01,156.98,6.4145713]
[1748645981565,0.0409636,157.02,156.98,0.0465713]
[1748645981964,6.3671,157.01,156.98,0.0465713]
[1748645982574,0.0409636,157.02,156.98,0.0465713]
[1748645983273,6.3673,157.01,156.98,6.4147713]
[1748645983472,0.0409636,157.02,156.98,0.0465713]
[1748645985275,0.0409636,157.02,156.99,6.3678]
[1748645985963,6.4076636,157.02,156.98,6.4145713]
[1748645986170,6.4076636,157.02,156.98,0.0465713]
[1748645986369,0.0409636,157.02,156.98,0.0465713]
[1748645986575,6.3678,156.99,156.98,0.0465713]
[1748645986970,0.0409636,157.02,156.98,0.0465713]
[1748645987974,6.3671,157.01,156.98,0.0465713]
[1748645988270,0.0409636,157.02,156.98,0.0465713]
[1748645989073,6.3678,156.99,156.98,0.0465713]
[1748645989673,6.3678,156.99,156.93,2.0805]
[1748645989674,38.52,156.99,156.93,2.0805]
[1748645989974,38.52,156.99,156.92,38.52]
[1748645990570,0.04605225,156.97,156.94,0.0448532]
[1748645990770,6.3695,156.95,156.94,0.0448532]
[1748645992479,6.372,156.89,156.87,6.3598]
[1748645992680,38.52,156.95,156.85,38.52]
[1748645993079,6.3716,156.9,156.85,38.52]
[1748645993279,6.3716,156.9,156.86,6.3729]
[1748645993491,6.3728,156.87,156.85,38.52]
[1748645993682,6.3728,156.87,156.86,0.04687344]
[1748645994880,0.04497694,156.9,156.8,1.28]
[1748645995087,49.49392006,156.91,156.8,1.28]
[1748645995385,6.3751,156.81,156.8,1.28]
[1748645995583,10.95392006,156.86,156.62,550.22]
[1748645995890,0.04732593,156.77,156.73,0.0251106]
[1748645996186,0.04344248,156.77,156.76,6.3771]
[1748645997193,0.04344248,156.77,156.75,6.3775]
[1748645997390,0.04344248,156.77,156.74,2.1745]
[1748645997683,0.04344248,156.77,156.73,0.0251106]
[1748645998681,10.95392006,156.76,156.66,6.3811]
[1748645998884,10.95392006,156.76,156.65,38.54]
[1748645999290,38.54,156.77,156.63,44.8796]
[1748645999491,10.95392006,156.75,156.63,44.8796]
[1748645999692,6.3797,156.7,156.63,42.7816]
[1748645999988,0.0430612,156.71,156.63,42.7816]
[1748646000287,0.0430612,156.71,156.69,6.3798]
[1748646000491,0.0430612,156.71,156.63,42.7816]
[1748646001693,10.95392006,156.8,156.63,42.7816]
[1748646001999,38.56,156.82,156.76,6.3771]
[1748646002291,38.56,156.82,156.65,10.95392006]
[1748646002292,38.56,156.83,156.72,38.56]
[1748646002489,38.56,156.83,156.73,42.6791]
[1748646002686,0.04527911,156.8,156.76,0.0430612]
[1748646002894,0.04527911,156.8,156.77,38.56]
[1748646003794,600.116583,156.87,156.77,38.56]
[1748646004093,44.933,156.87,156.77,38.56]
[1748646004298,38.56,156.87,156.77,38.56]
[1748646004494,44.9331,156.87,156.82,6.3746]
[1748646004794,10.97826671,156.85,156.83,0.0421695]
[1748646004992,10.97804628,156.85,156.82,0.04486897]
[1748646005188,10.97804628,156.85,156.74,6.3779]
[1748646005384,0.04403867,156.81,156.77,0.04047711]
[1748646005595,6.3756,156.8,156.77,0.04047711]
[1748646005801,0.04403867,156.81,156.77,0.04047711]
[1748646007189,11.02736103,156.81,156.77,0.04047711]
[1748646007396,6.3779,156.75,156.7,38.56]
[1748646007596,38.56,156.83,156.7,38.56]
[1748646007792,2.1335,156.85,156.71,2.0829]
[1748646008297,0.04221298,156.8,156.76,0.04489862]
[1748646008494,6.3771,156.77,156.76,0.04489862]
[1748646008801,38.58,156.78,156.68,38.58]
[1748646009193,38.58,156.78,156.68,44.9602]
[1748646009397,38.58,156.78,156.68,38.58]
[1748646009788,0.04145101,156.75,156.68,38.58]
[1748646010495,6.3783,156.74,156.69,6.3799]
[1748646011197,0.04145101,156.75,156.68,38.58]
[1748646011699,0.04145101,156.75,156.71,6.3792]
[1748646011895,0.04145101,156.75,156.68,38.58]
[1748646012097,6.3784,156.74,156.69,6.3798]
[1748646012295,0.04145101,156.75,156.68,38.58]
[1748646012502,0.04145101,156.75,156.66,2.0811]
[1748646012695,38.74,156.74,156.66,2.0811]
[1748646012895,0.04068961,156.72,156.66,2.0811]
[1748646013794,6.3796,156.71,156.67,6.3806]
[1748646014005,0.04068961,156.72,156.66,2.0811]
[1748646014698,0.04068961,156.72,156.56,561.88788865]
[1748646014893,0.04034146,156.66,156.6,2.0946]
[1748646015103,6.42194146,156.66,156.6,2.0946]
[1748646015295,0.04034146,156.66,156.6,2.0946]
[1748646015601,6.3789,156.72,156.6,2.0946]
[1748646015799,49.72788865,156.78,156.61,38.74]
[1748646016096,49.72788865,156.78,156.66,6.3812]
[1748646016293,49.72788865,156.78,156.67,38.74]
[1748646016490,0.04864342,156.74,156.71,0.04330604]
[1748646016696,0.04655268,156.74,156.71,0.04034642]
[1748646017398,6.3788,156.72,156.71,0.04034642]
[1748646017602,38.78655268,156.74,156.65,2.156]
[1748646017899,38.74,156.74,156.62,6.3826]
[1748646018097,38.74,156.74,156.61,40.916]
[1748646018705,0.04531081,156.69,156.61,40.916]
[1748646019199,6.42551081,156.69,156.61,40.916]
[1748646019396,0.04531081,156.69,156.61,40.916]
[1748646019708,6.42561081,156.69,156.65,6.3813]
[1748646020008,6.42561081,156.69,156.61,40.916]
[1748646020206,0.04531081,156.69,156.61,40.916]
[1748646020500,38.74,156.74,156.61,40.916]
[1748646020701,38.74,156.74,156.67,6.3806]
[1748646020910,38.74,156.74,156.67,45.1406]
[1748646021200,49.72788865,156.74,156.61,40.916]
[1748646021397,0.04912386,156.69,156.66,0.04285192]
[1748646021799,0.04912386,156.69,156.67,6.3808]
[1748646022000,0.04912386,156.69,156.66,0.04285192]
[1748646023296,38.74,156.74,156.66,0.04285192]
[1748646024207,38.76,156.79,156.66,0.04285192]
[1748646024406,0.04258455,156.74,156.71,0.04032879]
[1748646024606,38.76,156.79,156.71,38.80032879]
[1748646024807,38.76,156.83,156.72,2.1881]
[1748646025106,38.76,156.83,156.77,6.3766]
[1748646025404,38.76,156.83,156.76,38.76]
[1748646025604,6.41914686,156.81,156.78,0.04611222]
[1748646025809,0.04374686,156.81,156.78,0.04611222]
[1748646027005,10.98788865,156.88,156.79,38.76]
[1748646027205,10.98788865,156.88,156.77,38.76]
[1748646027411,10.98788865,156.84,156.74,38.76]
[1748646027710,10.98788865,156.8,156.7,38.76]
[1748646027919,0.04652526,156.77,156.73,0.04066742]
[1748646029019,0.04652526,156.77,156.74,38.76]
[1748646029214,0.04652526,156.77,156.75,2.0199]
[1748646029615,0.04652526,156.77,156.73,0.04066742]
[1748646031814,6.378,156.74,156.73,0.04066742]
[1748646033020,0.04652526,156.77,156.73,0.04066742]
[1748646033719,6.378,156.74,156.73,0.04066742]
[1748646034412,6.3777,156.75,156.73,0.04066742]
[1748646034614,0.04652526,156.77,156.73,0.04066742]
[1748646035817,0.04652526,156.77,156.74,38.74]
[1748646036215,0.04652526,156.77,156.73,0.04066742]
[1748646038024,6.3776,156.76,156.73,0.04066742]
[1748646038218,0.04652526,156.77,156.73,0.04066742]
[1748646038420,38.74,156.84,156.74,38.74]
[1748646038613,38.74,156.84,156.77,6.3765]
[1748646038614,6.3754,156.81,156.77,6.3765]